Cogmind - Beta 9.4 *** ADVENTURER MODE // 2020.03.28 @ 15:32:14 Player: ker Result: Destroyed by L-31 Rogue with Katana Performance ------------- Evolutions (1) 500 Regions Visited (3) 600 Robots Destroyed (68) 340 Value Destroyed (992) 992 Prototype IDs (7) 140 Alien Tech Used (0) 0 Bonus (0) 0 TOTAL SCORE: 2572 Bonus ------- None Cogmind --------- Core Integrity 0/400 Matter 300/300 Energy 100/100 System Corruption 1% Temperature Cool (0) Movement Core (50) Location -9/Mines Parts ------- > --- POWER (2) -------- (None) > --- PROPULSION (3) --- (None) > --- UTILITY (2) ------ Terrain Scan Processor > --- WEAPON (2) ------- Hammer > --- INVENTORY (4) ---- Reinforced Ion Engine High-capacity Battery (400) Medium Laser Mining Laser Peak State ------------ > --- POWER ------------ Light Ion Engine Light Ion Engine > --- PROPULSION ------- Flight Unit Flight Unit Flight Unit > --- UTILITY ---------- Terrain Scanner Terrain Scan Processor > --- WEAPON ----------- Improved EM Shotgun Improved EM Shotgun > --- INVENTORY -------- High-capacity Battery Weight Redist. System Transport Network Coupler Heavy Assault Rifle [Rating: 14] Favorites ----------- Power Light Ion Engine Engine Light Ion Engine Power Core Light Nuclear Core Propulsion Light Treads Treads Light Treads Flight Unit Flight Unit Utility Terrain Scan Processor Device Improved Terrain Scanner Processor Terrain Scan Processor Weapon Light Assault Rifle Energy Gun Small Laser Ballistic Gun Light Assault Rifle Special Weapon Mining Laser Impact Weapon Hammer Slashing Weapon Katana Special Melee Weapon Datajack Build | -11 -10 -9 -9 ------- Run | Scr Mat Mat Min Slots Evolved 2 | . . 2 . Power 1 | . . 1 . Propulsion 1 | . . 1 . Utility . | . . . . Weapon . | . . . . Parts Attached 70 | 8 17 39 6 Power 19 | 1 4 10 4 Engine 18 | 1 3 10 4 Core 1 | . 1 . . Reactor . | . . . . Propulsion 16 | 2 3 10 1 Treads 7 | 2 1 3 1 Leg . | . . . . Wheel . | . . . . Hover . | . . . . Flight 9 | . 2 7 . Utility 9 | 3 1 5 . Device 6 | 1 . 5 . Storage . | . . . . Processor 3 | 2 1 . . Hackware . | . . . . Protection . | . . . . Artifact . | . . . . Weapon 26 | 2 9 14 1 Energy Gun 11 | . 4 7 . Energy Cannon . | . . . . Ballistic Gun 8 | 2 2 4 . Ballistic Cannon . | . . . . Launcher . | . . . . Special Weapon 3 | . 1 2 . Impact Weapon 1 | . . . 1 Slashing Weapon 1 | . . 1 . Piercing Weapon . | . . . . Special Melee Weapon 2 | . 2 . . Unidentified Prototypes 1 | . . 1 . Parts Lost 22 | . 1 13 8 Power 8 | . . 5 3 Propulsion 6 | . . 3 3 Utility 2 | . . 1 1 Weapon 6 | . 1 4 1 Highest Loss Streak 7 | . 1 3 7 Average Slot Usage (%) 90 | . 99 81 94 Engine 14 | . 8 15 20 Core 1 | . 5 . . Treads 12 | . 21 7 9 Flight 14 | . 6 17 20 Device 11 | . 14 9 10 Processor 11 | . 13 11 11 Energy Gun 6 | . 7 7 . Ballistic Gun 9 | . 18 5 . Impact Weapon 1 | . . . 10 Slashing Weapon 4 | . . 5 10 Naked Turns . | . . . . Heaviest Build 18 | 8 10 13 18 Greatest Support 46 | 40 40 46 20 Greatest Overweight (x) 4 | . 3 4 2 Average Overweight (x) . | . . . . Largest Inventory Capacity 4 | 4 4 4 4 Average Capacity 4 | 4 4 4 4 Most Carried 4 | 4 4 4 4 Average Carried 3 | 3 3 3 3 Final Capacity 4 | 4 4 4 4 Final Carried 4 | 4 3 4 4 Class Distribution -------------------- 61% | Scavenger-Mutant 38% | Mutant Dominant Class ---------------- Mutant | -10/Materials Scavenger-Mutant | -9/Materials Scavenger-Mutant | -9/Mines Resources | -11 -10 -9 -9 ----------- Run | Scr Mat Mat Min Matter Collected 1084 | 350 210 469 55 Remotely . | . . . . Salvage Created 2136 | 303 333 1153 347 Parts 153 | 25 23 89 16 Haulers Intercepted 4 | . . 4 . Recyclers Shooed 1 | . . 1 . Parts Field Recycled . | . . . . Retrieved Matter . | . . . . Parts Self-Destructed . | . . . . Prevented . | . . . . Kills | -11 -10 -9 -9 ------- Run | Scr Mat Mat Min Combat Hostiles Destroyed 28 | . 5 20 3 Melee 12 | . . 9 3 Guns 15 | . 5 10 . Classes Destroyed 12 | 3 4 4 1 Worker 11 | 2 2 5 2 Builder 5 | . 2 3 . Tunneler 12 | 8 . 3 1 Hauler 4 | . . 4 . Recycler 5 | 1 1 1 2 Operator 1 | . . 1 . Watcher 2 | . 1 1 . Swarmer 10 | . 2 8 . Grunt 13 | . 3 8 2 Brawler 1 | . . . 1 Duelist 1 | . . 1 . Sentry 3 | . . 3 . Best Kill Streak 8 | 3 3 8 3 Combat Bots Only 4 | . 2 4 3 Max Kills in Single Turn 1 | 1 1 1 1 Gunslinging . | . . . . Exploded . | . . . . Melee 1 | . . 1 1 Uniques/NPCs Destroyed . | . . . . Combat | -11 -10 -9 -9 -------- Run | Scr Mat Mat Min Damage Taken 2005 | . 337 1313 355 Core 476 | . 54 319 103 Absorbed by Shields . | . . . . Core Remaining (%) 89 | 100 78 . . Volleys Fired 155 | 35 54 66 . Largest 2 | 2 2 2 . Hottest 100 | 40 85 100 . Shots Fired 271 | 70 84 117 . Gun 265 | 70 83 112 . Cannon . | . . . . Launcher . | . . . . Special 6 | . 1 5 . Kinetic 209 | 70 66 73 . Thermal 50 | . 18 32 . Explosive . | . . . . Electromagnetic 12 | . . 12 . Robot Hit Streak 26 | 26 16 25 . Robot Miss Streak 3 | 2 2 3 . Penetration Max . | . . . . Secondary Targets 2 | . . 2 . Max Gunslinging Chain 1 | . . 1 . Shots Hit Robots 272 | 58 60 136 18 Core Hits 110 | 21 23 59 7 Critical Hits 2 | 2 . . . Critical Kills 1 | 1 . . . Critical Parts Destroyed 1 | 1 . . . Melee Attacks 63 | . 4 40 19 Impact 6 | . . . 6 Slashing 53 | . . 40 13 Piercing . | . . . . Sneak Attacks 16 | . 2 7 7 Combat Hostiles . | . . . . Follow-up Attacks 1 | . . . 1 Damage Inflicted 4741 | 436 471 2907 927 Guns 2055 | 436 471 1148 . Cannons . | . . . . Explosions . | . . . . Melee 2566 | . . 1639 927 Ramming . | . . . . Kinetic 1399 | 436 335 628 . Thermal 527 | . 136 391 . Explosive . | . . . . Electromagnetic 249 | . . 249 . Impact 137 | . . . 137 Slashing 2429 | . . 1639 790 Piercing . | . . . . Highest Corruption 1 | . . 1 1 Average Corruption 1 | . . 1 1 Corruption Purged . | . . . . Effects 3 | . . 1 2 Message Errors 2 | . . . 2 Energy Discharges 1 | . . 1 . Overload Shots . | . . . . Overflow Damage 356 | . . 193 163 Projectiles . | . . . . Explosions . | . . . . Melee 356 | . . 193 163 Knockbacks . | . . . . Impact . | . . . . Kinetic . | . . . . Secondary . | . . . . Self-Inflicted Damage . | . . . . Shots . | . . . . Rammed . | . . . . Targets Rammed . | . . . . Kicked . | . . . . Crushed . | . . . . Highest Temperature 239 | . 230 239 . Average Temperature 57 | . 52 60 . Received Heat Transfer 801 | . 150 561 90 Effects 3 | . . 3 . Interference 3 | . . 3 . Siege Activations . | . . . . Robots Corrupted . | . . . . Combat Hostiles . | . . . . Parts Fried 2 | . . 1 1 Impact Corruptions 2 | . . . 2 Robots Melted 1 | . . 1 . Combat Hostiles 1 | . . 1 . Parts Melted 1 | . 1 . . Heat Transferred 1230 | . 395 835 . Parts Sabotaged . | . . . . Parts Stolen . | . . . . Parts Stripped . | . . . . Power Chain Reactions . | . . . . Missiles Intercepted . | . . . . Alert | -11 -10 -9 -9 ------- Run | Scr Mat Mat Min Peak Influence 393 | 55 115 393 189 Average Influence 144 | 27 71 227 172 Maximum Alert Level 1 | . . 1 . Low Security (%) 74 | 100 100 38 100 Level 1 25 | . . 61 . Level 2 . | . . . . Level 3 . | . . . . Level 4 . | . . . . Level 5 . | . . . . High Security . | . . . . Max Security . | . . . . Squads Dispatched 4 | . . 3 1 Investigation 1 | . . 1 . Extermination . | . . . . Reinforcement 2 | . . 2 . Assault 1 | . . . 1 Garrison . | . . . . Intercept . | . . . . Construction Impeded . | . . . . Haulers Reinforced . | . . . . Stealth | -11 -10 -9 -9 --------- Run | Scr Mat Mat Min Distress Signals 4 | . 1 3 . Communications Jammed . | . . . . Distress Signals . | . . . . Times Spotted 60 | . 14 39 7 Peak Tracking Total 5 | . 4 5 5 Tactical Retreats 1 | . . 1 . Traps | -11 -10 -9 -9 ------- Run | Scr Mat Mat Min Traps Triggered 3 | . 1 2 . Indirectly . | . . . . Trap Hack Attempts . | . . . . Triggered . | . . . . Disarmed . | . . . . Reprogrammed . | . . . . Reused . | . . . . Traps Extracted . | . . . . Installed . | . . . . Triggered 1 | . . 1 . Machines | -11 -10 -9 -9 ---------- Run | Scr Mat Mat Min Machines Disabled . | . . . . Max in Single Turn . | . . . . Machines Sabotaged . | . . . . Garrisons Compromised . | . . . . Overloaded Fab Kills . | . . . . Fab Network Shutdowns . | . . . . Hacking | -11 -10 -9 -9 --------- Run | Scr Mat Mat Min Machines Accessed 7 | . 5 2 . Terminals 4 | . 3 1 . Fabricators . | . . . . Repair Stations . | . . . . Recycling Units 2 | . 2 . . Scanalyzers 1 | . . 1 . Garrison Access . | . . . . Total Hacks 24 | . 13 11 . Successful 17 | . 7 10 . Failed 7 | . 6 1 . Catastrophic . | . . . . Database Lockouts . | . . . . Manual . | . . . . Terminals 10 | . 6 4 . Fabricators . | . . . . Repair Stations . | . . . . Recycling Units 7 | . 7 . . Scanalyzers 7 | . . 7 . Garrison Access . | . . . . Terminal Hacks 7 | . 4 3 . Record 2 | . 1 1 . Prototype ID Bank 3 | . 2 1 . Alert Level 1 | . 1 . . Zone Layout 1 | . . 1 . Fabricator Hacks . | . . . . Repair Station Hacks . | . . . . Recycling Unit Hacks 3 | . 3 . . Report Inventory 2 | . 2 . . Retrieve Components 1 | . 1 . . Scanalyzer 7 | . . 7 . Insert Component 3 | . . 3 . Analyze 4 | . . 4 . Garrison Access Hacks . | . . . . Unauthorized Hacks . | . . . . Terminals . | . . . . Fabricators . | . . . . Repair Stations . | . . . . Recycling Units . | . . . . Scanalyzers . | . . . . Garrison Access . | . . . . Data Cores Recovered . | . . . . Used . | . . . . Hacking Detections 6 | . 4 2 . Full Trace Events 3 | . 2 1 . Feedback Events . | . . . . Feedback Blocked . | . . . . Robot Schematics Acquired . | . . . . Robots Built . | . . . . Matter . | . . . . Time . | . . . . Total Robot Build Rating . | . . . . Part Schematics Acquired 3 | . . 3 . Parts Built . | . . . . Matter . | . . . . Time . | . . . . Total Part Build Rating . | . . . . Parts Repaired . | . . . . Time . | . . . . Parts Recycled . | . . . . Recycled Matter . | . . . . Retrieved Matter . | . . . . Retrieved Components 3 | . 3 . . Parts Scanalyzed 3 | . . 3 . Part Schematics Acquired 3 | . . 3 . Parts Damaged . | . . . . Bothacking | -11 -10 -9 -9 ------------ Run | Scr Mat Mat Min Used RIF Installer . | . . . . Robots Hacked 2 | . 2 . . Non-combat 2 | . 2 . . Combat . | . . . . Robot Hacks Applied 3 | . 3 . . parse_system 2 | . 2 . . no_distress 1 | . 1 . . Relay Couplers Released . | . . . . Robots Rewired . | . . . . Allies Hacked . | . . . . Hacks Repelled . | . . . . Allies | -11 -10 -9 -9 -------- Run | Scr Mat Mat Min Total Allies 1 | . . . 1 Largest Group 1 | . . . 1 Highest-Rated Group 31 | . . . 31 Highest-Rated Ally 31 | . . . 31 Total Orders . | . . . . Ally Attacks . | . . . . Total Damage . | . . . . Kills . | . . . . Allies Corrupted . | . . . . Allies Melted . | . . . . Intel | -11 -10 -9 -9 ------- Run | Scr Mat Mat Min Robot Analysis Total . | . . . . Derelict Logs Recovered 1 | . . . 1 Drone Launches . | . . . . Drone Recoveries . | . . . . Exploration | -11 -10 -9 -9 ------------- Run | Scr Mat Mat Min Turns Passed 1889 | 266 564 768 291 Spaces Moved 967 | 99 307 416 145 Core 75 | 2 2 64 7 Treads 545 | 97 210 100 138 Legs . | . . . . Wheels . | . . . . Hover . | . . . . Flight 347 | . 95 252 . Fastest Speed 34 | 50 37 34 150 Average Speed 116 | 157 122 88 159 Slowest Speed 250 | 160 200 250 160 Overloaded Moves . | . . . . Propulsion Burnouts . | . . . . Robots Hopped . | . . . . Cave-ins Triggered . | . . . . Exploration Rate (%) 29 | 7 53 29 28 Regions Visited 3 Branch Regions 1 Pre-discovered Areas 1 | . . . 1 Known Exits Taken . | . . . . Unknown Exits Taken 3 | 1 1 1 . Scrap Searched . | . . . . Spaces Dug . | . . . . Terrain Destroyed . | . . . . Melee . | . . . . Projectile . | . . . . AOE . | . . . . Actions | -11 -10 -9 -9 --------- Run | Scr Mat Mat Min Total 1394 | 153 419 643 179 Wait 44 | . 6 35 3 Move 964 | 98 306 415 145 Hop . | . . . . Pick Up 47 | 11 15 18 3 Fast Attach 26 | 1 4 18 3 Attach 14 | 7 . 7 . Detach 1 | . . 1 . Swap 30 | . 13 14 3 Drop 52 | 1 17 29 5 Fire 155 | 35 54 66 . Melee 61 | . 4 40 17 Ram . | . . . . Kick . | . . . . Crush . | . . . . Escape Stasis . | . . . . Rewire . | . . . . Trap . | . . . . Miscellaneous . | . . . . Route ------- -11/Scrapyard -10/Materials -9/Materials (discovered 3 exits: [*Min x2] / [*Sto]) -9/Mines History --------- Turn | Location | Event 2 | -11/Scrapyard | Met Revision 17 29 | -11/Scrapyard | Discovered new exit (range 15) 267 | -11/Scrapyard | Entered Materials 315 | -10/Materials | Build established: Mutant 807 | -10/Materials | Discovered new exit (range 15) 831 | -10/Materials | Entered another Materials area 831 | -9/Materials | Evolved 2 slots: Power x1, Propulsion x1 1020 | -9/Materials | Build established: Scavenger-Mutant 1048 | -9/Materials | Lost 3 parts (2p1w) 1090 | -9/Materials | Discovered new exit (range 10) 1175 | -9/Materials | Discovered new exit (range 10) 1260 | -9/Materials | Lost 3 parts (1u2w) 1301 | -9/Materials | Core integrity fell below 50% 1474 | -9/Materials | Discovered new exit (range 14) 1599 | -9/Materials | Entered Mines 1609 | -9/Mines | Core integrity fell below 20% 1649 | -9/Mines | Learned location of Storage (-9) 1784 | -9/Mines | Met a Derelict testing a Signal Generator 1890 | -9/Mines | Destroyed by L-31 Rogue with Katana Last Messages --------------- Seismic Analyzer fried. T-07 Excavator is excavating. U-05 Engineer builds a Wall. T-07 Excavator is excavating. U-05 Engineer builds a Wall. Flight Unit destroyed. U-05 Engineer builds a Wall. U-05 Engineer lays Concrete. U-05 Engineer builds a Wall. Lgt. Ion Engine destroyed. U-05 Engineer builds a Wall. U-05 Engineer lays Concrete. Katana destroyed. Lgt. Treads destroyed. U-05 Engineer builds a Wall. Imp. Sensor Array destroyed. Lgt. Ion Engine destroyed. G-34 Mercenary destroyed. U-05 Engineer builds a Wall. [Achievement: First Step to Greatness] Map ----- +----------------------------------------------------+ | ?????????????????????????????????????????????????? | | ?????????????????????????????????????????????????? | | ?????????????????????????????????????????????????? | | ?????????????????????????????????????????????????? | | ?????????????????????????????????????????????????? | | ?????????????????????????????????????????????????? | | ?????????????????????????????????????????????????? | | ?????????????????????????????????????????????????? | | ?????????????????????????????????????????????????? | | ?????????????????????????????????????????????????? | | ?????????????????????????????????????????????????? | | ?????????????????????????????????????????????????? | | ?????????????????????????????????????????????????? | | ?????????????????????????????????????????????????? | | ?????????????????????????????????????????????????? | | ?????????????????????????????????????????????????? | | ?????????????????????????????????????????????????? | | ?????????????????????????????????????????????????? | | ??????????????????????????###????????????????????? | | ????????????????????????##u ##???????????????????? | | ???????????????????????##u #???????????????????? | | ???????????????????????# #???????????????????? | | ???????????????????????# #???????????????????? | | ??????????????????????##% ##???????????????????? | | ??????????????????????# #????????????????????? | | ?????????????????###### =@ ##????????????????????? | | ?????????????????# ###ll##### #????????????????? | | ?????????????????# ## gr%= #????????????????? | | ??????????????????# ## #######????????????????? | | ??????????????????# ## t#####??????????????????? | | ?????????????????## ## ##?????????????????? | | ?????????????????# r ## ##????????????????? | | ?????????????????# #### # ###??????????????? | | ????????????????## #?## ###????????????? | | ???????????????## ### ##???????????? | | ??????????????## * ## #???????????? | | ??????????????# %!%=### #???????????? | | ??????????????#!""" #?## #???????????? | | ?????????######*""" #??## #???????????? | | ?????????# """ #???## #???????????? | | ?????##### #????## ### ##???????????? | | ?????# ###### ##????## ##??##????????????? | | ##???# #####????### ####??#####?????????????????? | | ##??# #?####?????## ##???????????????????????? | | #### ## #??????## #???????????????????????? | | #???????### ##??????????????????????? | | ##?????????## ####???????????????????? | | ## ##???????????# ##??????????????????? | | #### #????????????## ###????????????????? | | #### #?????????????### ##???????????????? | +----------------------------------------------------+ Best States ------------- Heat Dissipation 28 Energy Generation 17 Energy Capacity 290 Matter Stores 300 Matter Capacity 300 Sight Range 16 Robot Scan Range 13 Terrain Scan Range 16 Terrain Scan Density 85 Additional Mass Support 6 Resistance: KI 20 Resistance: TH 20 Resistance: EX 20 Resistance: EM 20 Resistance: I 20 Resistance: S 20 Resistance: P 20 Evasion (%) 63 Recoil Reduction 2 Offensive Hacking 10 Item Schematics ----------------- Welding Torch | -9/Materials | Scanalyzed Weight Redist. System | -9/Materials | Scanalyzed Hcp. Battery | -9/Materials | Scanalyzed Robot Schematics ------------------ None Fabricated ------------ Nothing Alien Tech Used ----------------- None Achievements -------------- First Step to Greatness It's Just You Challenges ------------ None Game ------ Seed ker Manual? 1 Play Time 00:53:25 Cumulative 1.7 hours Start 2020.03.28 @ 14:38:09 End 2020.03.28 @ 15:32:14 Sessions 1 Manual Loads 0 Difficulty Adventurer Special Mode None Game No. 2 Rogue 0 Adventurer 1 Explorer 1 Win Type - Total 0 Types 0/0/0/0/0/0/0 Lore% 2 Gallery% 6 Achievement% 5 Wizard Run 0 Options --------- ASCII 0 Keyboard 0 Movement Mouse Keybinds 0 Fullscreen 1 Font 24/Smallcaps Map View 76x50 Tactical HUD 0 Map Filters NONE Filters NONE Steam 1 RUN: c68e31cc-d794-4165-9bab-1e7dcb82eb98